[Event "Titled Tuesday Blitz August 08 Early 2023"]
[White "Willy, Stephen"]
[Black "Fernandez Siles, Luis"]
[WhiteFideId "30981468"]
[BlackFideId "2209420"]
[WhiteElo "2497"]
[BlackElo "2294"]
[Result "1-0"]
[Round "2"]
[TimeControl "180+1"]
[Date "2023.08.08"]
[WhiteClock "0:00:35"]
[BlackClock "0:00:00"]
[Board "212"]

1. e4 {[%clk 0:03:00]}  c5 {[%clk 0:02:58]} 2. c3 {[%clk 0:02:57]}  Nf6 {[%clk 0:02:55]} 3. e5 {[%clk 0:02:55]}  Nd5 {[%clk 0:02:55]} 4. Nf3 {[%clk 0:02:56]}  Nc6 {[%clk 0:02:55]} 5. Bc4 {[%clk 0:02:54]}  Nb6 {[%clk 0:02:53]} 6. Bb3 {[%clk 0:02:55]}  d6 {[%clk 0:02:53]} 7. exd6 {[%clk 0:02:54]}  Qxd6 {[%clk 0:02:54]} 8. O-O {[%clk 0:02:54]}  e6 {[%clk 0:02:44]} 9. d4 {[%clk 0:02:42]}  cxd4 {[%clk 0:02:43]} 10. Na3 {[%clk 0:02:36]}  a6 {[%clk 0:02:40]} 11. cxd4 {[%clk 0:02:29]}  Be7 {[%clk 0:02:36]} 12. Be3 {[%clk 0:02:28]}  O-O {[%clk 0:02:28]} 13. Bc2 {[%clk 0:02:25]}  Bf6 {[%clk 0:02:18]} 14. h4 {[%clk 0:01:58]}  Nb4 {[%clk 0:01:51]} 15. Be4 {[%clk 0:01:50]}  N4d5 {[%clk 0:01:44]} 16. Ng5 {[%clk 0:01:43]}  Bxg5 {[%clk 0:01:23]} 17. Bxg5 {[%clk 0:01:35]}  h6 {[%clk 0:01:20]} 18. Bd2 {[%clk 0:01:23]}  f5 {[%clk 0:01:17]} 19. Bf3 {[%clk 0:01:21]}  Bd7 {[%clk 0:01:10]} 20. Re1 {[%clk 0:01:19]}  Rac8 {[%clk 0:01:04]} 21. Rc1 {[%clk 0:01:15]}  Rxc1 {[%clk 0:00:54]} 22. Qxc1 {[%clk 0:01:14]}  Rc8 {[%clk 0:00:54]} 23. Qd1 {[%clk 0:01:13]}  Nc4 {[%clk 0:00:50]} 24. Nxc4 {[%clk 0:01:11]}  Rxc4 {[%clk 0:00:51]} 25. Bc1 {[%clk 0:00:48]}  Bc6 {[%clk 0:00:33]} 26. b3 {[%clk 0:00:43]}  Rc3 {[%clk 0:00:20]} 27. Bb2 {[%clk 0:00:42]}  Qf4 {[%clk 0:00:00]} 28. Bxd5 {[%clk 0:00:35]} 1-0


[Site "https://www.chess.com"]

[Event "Titled Tuesday Blitz August 08 Early 2023"]
[White "Doluhanova, Evgeniya"]
[Black "marik_spb"]
[WhiteFideId "14112035"]
[WhiteElo "2288"]
[BlackElo "2495"]
[Result "1-0"]
[Round "2"]
[TimeControl "180+1"]
[Date "2023.08.08"]
[WhiteClock "0:00:07"]
[BlackClock "0:00:00"]
[Board "214"]

1. Nf3 {[%clk 0:03:00]}  Nf6 {[%clk 0:02:59]} 2. g3 {[%clk 0:02:57]}  g6 {[%clk 0:02:59]} 3. Bg2 {[%clk 0:02:57]}  Bg7 {[%clk 0:03:00]} 4. O-O {[%clk 0:02:57]}  O-O {[%clk 0:02:59]} 5. c4 {[%clk 0:02:57]}  d5 {[%clk 0:02:59]} 6. cxd5 {[%clk 0:02:56]}  Nxd5 {[%clk 0:03:00]} 7. Nc3 {[%clk 0:02:56]}  c5 {[%clk 0:02:57]} 8. d4 {[%clk 0:02:48]}  Nxc3 {[%clk 0:02:42]} 9. bxc3 {[%clk 0:02:48]}  Nc6 {[%clk 0:02:34]} 10. Ba3 {[%clk 0:02:31]}  cxd4 {[%clk 0:02:29]} 11. cxd4 {[%clk 0:02:31]}  Nxd4 {[%clk 0:02:28]} 12. Nxd4 {[%clk 0:02:30]}  Qxd4 {[%clk 0:02:27]} 13. Qxd4 {[%clk 0:02:27]}  Bxd4 {[%clk 0:02:27]} 14. Rab1 {[%clk 0:02:06]}  Bb6 {[%clk 0:02:13]} 15. Bxe7 {[%clk 0:02:04]}  Re8 {[%clk 0:02:13]} 16. Bf6 {[%clk 0:01:58]}  Rxe2 {[%clk 0:02:11]} 17. a4 {[%clk 0:01:48]}  Bf5 {[%clk 0:01:59]} 18. Rbc1 {[%clk 0:01:12]}  Be4 {[%clk 0:01:45]} 19. Bh3 {[%clk 0:01:00]}  Bc6 {[%clk 0:01:39]} 20. Rc4 {[%clk 0:00:54]}  Rae8 {[%clk 0:01:35]} 21. Bg2 {[%clk 0:00:32]}  R8e6 {[%clk 0:00:33]} 22. Bc3 {[%clk 0:00:31]}  f5 {[%clk 0:00:18]} 23. a5 {[%clk 0:00:27]}  Bd8 {[%clk 0:00:13]} 24. Rd1 {[%clk 0:00:24]}  Bf6 {[%clk 0:00:09]} 25. Bxf6 {[%clk 0:00:23]}  Rxf6 {[%clk 0:00:10]} 26. Bxc6 {[%clk 0:00:20]}  Rxc6 {[%clk 0:00:10]} 27. Rd8+ {[%clk 0:00:19]}  Kf7 {[%clk 0:00:10]} 28. Rxc6 {[%clk 0:00:11]}  bxc6 {[%clk 0:00:11]} 29. Rc8 {[%clk 0:00:11]}  Kf6 {[%clk 0:00:09]} 30. Rxc6+ {[%clk 0:00:11]}  Kg5 {[%clk 0:00:09]} 31. Rc7 {[%clk 0:00:10]}  a6 {[%clk 0:00:08]} 32. Kg2 {[%clk 0:00:09]}  Ra2 {[%clk 0:00:08]} 33. Rc5 {[%clk 0:00:09]}  h5 {[%clk 0:00:07]} 34. h4+ {[%clk 0:00:08]}  Kf6 {[%clk 0:00:06]} 35. Rc6+ {[%clk 0:00:08]}  Ke5 {[%clk 0:00:05]} 36. Rxa6 {[%clk 0:00:09]}  f4 {[%clk 0:00:05]} 37. Rxg6 {[%clk 0:00:09]}  fxg3 {[%clk 0:00:05]} 38. Kxg3 {[%clk 0:00:09]}  Kf5 {[%clk 0:00:03]} 39. Rg5+ {[%clk 0:00:09]}  Ke4 {[%clk 0:00:03]} 40. f3+ {[%clk 0:00:07]}  Ke3 {[%clk 0:00:02]} 41. Rxh5 {[%clk 0:00:07]}  Ra1 {[%clk 0:00:02]} 42. Re5+ {[%clk 0:00:06]}  Kd4 {[%clk 0:00:02]} 43. Rf5 {[%clk 0:00:06]}  Rg1+ {[%clk 0:00:03]} 44. Kf4 {[%clk 0:00:06]}  Ra1 {[%clk 0:00:04]} 45. Kg4 {[%clk 0:00:06]}  Rh1 {[%clk 0:00:05]} 46. Kh5 {[%clk 0:00:06]}  Rg1 {[%clk 0:00:06]} 47. Rg5 {[%clk 0:00:06]}  Rf1 {[%clk 0:00:05]} 48. a6 {[%clk 0:00:05]}  Rxf3 {[%clk 0:00:05]} 49. Ra5 {[%clk 0:00:04]}  Rf8 {[%clk 0:00:06]} 50. a7 {[%clk 0:00:04]}  Ra8 {[%clk 0:00:07]} 51. Kg6 {[%clk 0:00:05]}  Kc4 {[%clk 0:00:07]} 52. Kg7 {[%clk 0:00:05]}  Kb4 {[%clk 0:00:08]} 53. Ra1 {[%clk 0:00:05]}  Kb5 {[%clk 0:00:09]} 54. h5 {[%clk 0:00:05]}  Kb6 {[%clk 0:00:09]} 55. h6 {[%clk 0:00:06]}  Kb7 {[%clk 0:00:10]} 56. h7 {[%clk 0:00:06]}  Rc8 {[%clk 0:00:04]} 57. a8=Q+ {[%clk 0:00:06]}  Rxa8 {[%clk 0:00:00]} 58. Rxa8 {[%clk 0:00:07]} 1-0


[Site "https://www.chess.com"]

[Event "Titled Tuesday Blitz August 08 Early 2023"]
[White "Liu, Casper"]
[Black "GAO"]
[WhiteFideId "1454153"]
[WhiteElo "2493"]
[BlackElo "2283"]
[Result "1-0"]
[Round "2"]
[TimeControl "180+1"]
[Date "2023.08.08"]
[WhiteClock "0:00:05"]
[BlackClock "0:00:15"]
[Board "218"]

1. e4 {[%clk 0:03:00]}  c6 {[%clk 0:02:54]} 2. Qf3 {[%clk 0:02:59]}  d5 {[%clk 0:02:53]} 3. d3 {[%clk 0:02:58]}  e5 {[%clk 0:02:51]} 4. Nc3 {[%clk 0:02:56]}  Nf6 {[%clk 0:02:50]} 5. exd5 {[%clk 0:02:55]}  cxd5 {[%clk 0:02:50]} 6. Bg5 {[%clk 0:02:55]}  Be6 {[%clk 0:02:47]} 7. Bxf6 {[%clk 0:02:40]}  Qxf6 {[%clk 0:02:44]} 8. Be2 {[%clk 0:02:34]}  Bb4 {[%clk 0:02:38]} 9. Qxf6 {[%clk 0:02:28]}  gxf6 {[%clk 0:02:36]} 10. Bf3 {[%clk 0:02:28]}  e4 {[%clk 0:02:23]} 11. dxe4 {[%clk 0:02:23]}  d4 {[%clk 0:02:22]} 12. a3 {[%clk 0:02:21]}  dxc3 {[%clk 0:02:12]} 13. axb4 {[%clk 0:02:21]}  cxb2 {[%clk 0:02:13]} 14. Rb1 {[%clk 0:02:21]}  Nc6 {[%clk 0:02:08]} 15. Rxb2 {[%clk 0:02:21]}  Ke7 {[%clk 0:02:08]} 16. Ne2 {[%clk 0:02:09]}  Ne5 {[%clk 0:02:03]} 17. Nd4 {[%clk 0:02:03]}  Rhd8 {[%clk 0:02:01]} 18. Nxe6 {[%clk 0:02:01]}  fxe6 {[%clk 0:01:58]} 19. Be2 {[%clk 0:02:00]}  Rac8 {[%clk 0:01:56]} 20. b5 {[%clk 0:01:32]}  Rd4 {[%clk 0:01:44]} 21. f3 {[%clk 0:01:29]}  Nc4 {[%clk 0:01:25]} 22. Ra2 {[%clk 0:00:53]}  Ne3 {[%clk 0:01:03]} 23. Kf2 {[%clk 0:00:28]}  Rxc2 {[%clk 0:00:43]} 24. Rxa7 {[%clk 0:00:22]}  Rdd2 {[%clk 0:00:31]} 25. Rxb7+ {[%clk 0:00:21]}  Kd6 {[%clk 0:00:20]} 26. Kxe3 {[%clk 0:00:20]}  Rxe2+ {[%clk 0:00:20]} 27. Kf4 {[%clk 0:00:20]}  Rxg2 {[%clk 0:00:19]} 28. Rd1+ {[%clk 0:00:20]}  Kc5 {[%clk 0:00:20]} 29. Rdd7 {[%clk 0:00:10]}  Rcf2 {[%clk 0:00:19]} 30. Rxh7 {[%clk 0:00:07]}  e5+ {[%clk 0:00:19]} 31. Kf5 {[%clk 0:00:06]}  Rxf3+ {[%clk 0:00:19]} 32. Ke6 {[%clk 0:00:06]}  Rd2 {[%clk 0:00:17]} 33. Rhc7+ {[%clk 0:00:06]}  Kd4 {[%clk 0:00:16]} 34. b6 {[%clk 0:00:07]}  Kxe4 {[%clk 0:00:17]} 35. Rc4+ {[%clk 0:00:05]}  Ke3 {[%clk 0:00:16]} 36. Rbc7 {[%clk 0:00:04]}  Rb2 {[%clk 0:00:15]} 37. b7 {[%clk 0:00:05]}  Kf2 {[%clk 0:00:14]} 38. Rc2+ {[%clk 0:00:04]}  Rxc2 {[%clk 0:00:15]} 39. Rxc2+ {[%clk 0:00:05]}  Ke3 {[%clk 0:00:14]} 40. b8=Q {[%clk 0:00:05]}  e4 {[%clk 0:00:15]} 41. Qb3+ {[%clk 0:00:05]}  Kf4 {[%clk 0:00:14]} 42. Qb8+ {[%clk 0:00:06]}  Kg4 {[%clk 0:00:14]} 43. Qg8+ {[%clk 0:00:06]}  Kf4 {[%clk 0:00:14]} 44. Re2 {[%clk 0:00:05]}  e3 {[%clk 0:00:15]} 45. Qg2 {[%clk 0:00:05]}  f5 {[%clk 0:00:13]} 46. Kf6 {[%clk 0:00:05]}  Ke4 {[%clk 0:00:13]} 47. Ke6 {[%clk 0:00:03]}  f4 {[%clk 0:00:13]} 48. Qg6+ {[%clk 0:00:03]}  Kd4 {[%clk 0:00:13]} 49. Re1 {[%clk 0:00:03]}  Rf2 {[%clk 0:00:13]} 50. Rd1+ {[%clk 0:00:04]}  Rd2 {[%clk 0:00:14]} 51. Rxd2+ {[%clk 0:00:04]}  exd2 {[%clk 0:00:15]} 52. Qc2 {[%clk 0:00:04]}  Ke3 {[%clk 0:00:15]} 53. Qd1 {[%clk 0:00:03]}  f3 {[%clk 0:00:16]} 54. Kf5 {[%clk 0:00:03]}  Kf2 {[%clk 0:00:14]} 55. Kf4 {[%clk 0:00:03]}  Kg2 {[%clk 0:00:15]} 56. Qxf3+ {[%clk 0:00:03]}  Kg1 {[%clk 0:00:15]} 57. Qd1+ {[%clk 0:00:03]}  Kg2 {[%clk 0:00:14]} 58. Qxd2+ {[%clk 0:00:04]}  Kh1 {[%clk 0:00:15]} 59. Kg3 {[%clk 0:00:04]}  Kg1 {[%clk 0:00:15]} 60. Qc1# {[%clk 0:00:05]} 1-0


[Site "https://www.chess.com"]

[Event "Titled Tuesday Blitz August 08 Early 2023"]
[White "Perrine, Dalton"]
[Black "Jahnz, Fabian"]
[WhiteFideId "2048434"]
[BlackFideId "4653300"]
[WhiteElo "2492"]
[BlackElo "2278"]
[Result "1-0"]
[Round "2"]
[TimeControl "180+1"]
[Date "2023.08.08"]
[WhiteClock "0:00:36"]
[BlackClock "0:00:52"]
[Board "220"]

1. Nf3 {[%clk 0:02:57]}  d5 {[%clk 0:02:59]} 2. g3 {[%clk 0:02:57]}  c5 {[%clk 0:02:59]} 3. Bg2 {[%clk 0:02:58]}  Nc6 {[%clk 0:02:59]} 4. d4 {[%clk 0:02:58]}  Nf6 {[%clk 0:02:58]} 5. O-O {[%clk 0:02:58]}  Bf5 {[%clk 0:02:58]} 6. c4 {[%clk 0:02:55]}  e6 {[%clk 0:02:58]} 7. cxd5 {[%clk 0:02:50]}  exd5 {[%clk 0:02:56]} 8. Nc3 {[%clk 0:02:50]}  Be7 {[%clk 0:02:55]} 9. dxc5 {[%clk 0:02:47]}  Bxc5 {[%clk 0:02:55]} 10. Na4 {[%clk 0:02:38]}  Be7 {[%clk 0:02:48]} 11. Be3 {[%clk 0:02:32]}  O-O {[%clk 0:02:46]} 12. Rc1 {[%clk 0:02:31]}  Rc8 {[%clk 0:02:43]} 13. Bc5 {[%clk 0:02:23]}  Bxc5 {[%clk 0:02:42]} 14. Nxc5 {[%clk 0:02:23]}  b6 {[%clk 0:02:41]} 15. Nb3 {[%clk 0:02:21]}  Re8 {[%clk 0:02:33]} 16. Qd2 {[%clk 0:01:50]}  Ne4 {[%clk 0:02:30]} 17. Qf4 {[%clk 0:01:50]}  Bg6 {[%clk 0:02:27]} 18. Rfd1 {[%clk 0:01:43]}  Qf6 {[%clk 0:02:19]} 19. Bh3 {[%clk 0:01:31]}  Qxf4 {[%clk 0:02:16]} 20. gxf4 {[%clk 0:01:32]}  f5 {[%clk 0:01:42]} 21. Nbd4 {[%clk 0:00:45]}  Nxd4 {[%clk 0:01:38]} 22. Nxd4 {[%clk 0:00:45]}  Nd6 {[%clk 0:01:12]} 23. e3 {[%clk 0:00:45]}  Bh5 {[%clk 0:01:05]} 24. Re1 {[%clk 0:00:42]}  g6 {[%clk 0:01:03]} 25. Bg2 {[%clk 0:00:36]}  Nc4 {[%clk 0:00:52]} 26. Bxd5+ {[%clk 0:00:36]} 1-0


[Site "https://www.chess.com"]

[Event "Titled Tuesday Blitz August 08 Early 2023"]
[White "Nguyen Hong Nhung"]
[Black "Sariego Figueredo, Wilfredo"]
[WhiteFideId "12412201"]
[BlackFideId "3500080"]
[WhiteElo "2489"]
[BlackElo "2268"]
[Result "1-0"]
[Round "2"]
[TimeControl "180+1"]
[Date "2023.08.08"]
[WhiteClock "0:00:17"]
[BlackClock "0:00:00"]
[Board "221"]

1. e4 {[%clk 0:03:00]}  c5 {[%clk 0:02:59]} 2. Nc3 {[%clk 0:02:58]}  a6 {[%clk 0:03:00]} 3. Nf3 {[%clk 0:02:55]}  Nc6 {[%clk 0:02:58]} 4. d4 {[%clk 0:02:55]}  cxd4 {[%clk 0:02:57]} 5. Nxd4 {[%clk 0:02:56]}  e6 {[%clk 0:02:52]} 6. Be3 {[%clk 0:02:52]}  Bb4 {[%clk 0:02:43]} 7. Nxc6 {[%clk 0:02:48]}  bxc6 {[%clk 0:02:40]} 8. Qd4 {[%clk 0:02:46]}  Bxc3+ {[%clk 0:02:36]} 9. Qxc3 {[%clk 0:02:46]}  Nf6 {[%clk 0:02:32]} 10. Bd3 {[%clk 0:02:42]}  O-O {[%clk 0:02:31]} 11. O-O {[%clk 0:02:40]}  a5 {[%clk 0:02:31]} 12. Bg5 {[%clk 0:02:39]}  Nxe4 {[%clk 0:02:21]} 13. Bxd8 {[%clk 0:02:31]}  Nxc3 {[%clk 0:02:21]} 14. Be7 {[%clk 0:02:26]}  Re8 {[%clk 0:02:21]} 15. Bd6 {[%clk 0:02:26]}  Nb5 {[%clk 0:02:14]} 16. Bg3 {[%clk 0:02:12]}  Ba6 {[%clk 0:02:06]} 17. Rad1 {[%clk 0:02:00]}  d5 {[%clk 0:02:05]} 18. c4 {[%clk 0:01:58]}  Nd4 {[%clk 0:01:46]} 19. Be5 {[%clk 0:01:31]}  Nf5 {[%clk 0:01:37]} 20. b3 {[%clk 0:01:22]}  f6 {[%clk 0:01:32]} 21. Bb2 {[%clk 0:01:18]}  Nd6 {[%clk 0:01:18]} 22. Rc1 {[%clk 0:01:08]}  e5 {[%clk 0:00:52]} 23. Ba3 {[%clk 0:00:59]}  Nb7 {[%clk 0:00:33]} 24. Bf5 {[%clk 0:00:50]}  Rad8 {[%clk 0:00:21]} 25. cxd5 {[%clk 0:00:35]}  cxd5 {[%clk 0:00:15]} 26. Rfd1 {[%clk 0:00:32]}  Nd6 {[%clk 0:00:13]} 27. Bh3 {[%clk 0:00:23]}  Ne4 {[%clk 0:00:07]} 28. Rc6 {[%clk 0:00:20]}  Be2 {[%clk 0:00:05]} 29. Re1 {[%clk 0:00:17]}  Bb5 {[%clk 0:00:00]} 30. Rb6 {[%clk 0:00:17]} 1-0


[Site "https://www.chess.com"]

[Event "Titled Tuesday Blitz August 08 Early 2023"]
[White "Miguelitro69"]
[Black "Papayan, Oleg"]
[BlackFideId "4193911"]
[WhiteElo "2262"]
[BlackElo "2487"]
[Result "0-1"]
[Round "2"]
[TimeControl "180+1"]
[Date "2023.08.08"]
[WhiteClock "0:00:04"]
[BlackClock "0:00:25"]
[Board "223"]

1. e4 {[%clk 0:02:58]}  c5 {[%clk 0:02:59]} 2. Nf3 {[%clk 0:02:58]}  e6 {[%clk 0:02:59]} 3. d4 {[%clk 0:02:58]}  cxd4 {[%clk 0:03:00]} 4. Nxd4 {[%clk 0:02:59]}  a6 {[%clk 0:03:00]} 5. Be2 {[%clk 0:02:57]}  b5 {[%clk 0:03:00]} 6. O-O {[%clk 0:02:57]}  Bb7 {[%clk 0:03:00]} 7. Bf3 {[%clk 0:02:51]}  Qc7 {[%clk 0:02:58]} 8. Re1 {[%clk 0:02:48]}  Nc6 {[%clk 0:02:55]} 9. g3 {[%clk 0:02:46]}  Nxd4 {[%clk 0:02:55]} 10. Qxd4 {[%clk 0:02:45]}  Nf6 {[%clk 0:02:54]} 11. Nc3 {[%clk 0:02:43]}  Bc5 {[%clk 0:02:54]} 12. Qd3 {[%clk 0:02:39]}  d6 {[%clk 0:02:51]} 13. Bg2 {[%clk 0:02:36]}  O-O {[%clk 0:02:47]} 14. Bg5 {[%clk 0:02:35]}  Ng4 {[%clk 0:02:45]} 15. Nd1 {[%clk 0:02:17]}  Rac8 {[%clk 0:02:37]} 16. c3 {[%clk 0:02:13]}  Qb6 {[%clk 0:02:29]} 17. Qe2 {[%clk 0:02:08]}  f5 {[%clk 0:01:58]} 18. h3 {[%clk 0:01:49]}  Nxf2 {[%clk 0:01:50]} 19. Nxf2 {[%clk 0:01:46]}  fxe4 {[%clk 0:01:51]} 20. Be3 {[%clk 0:01:45]}  d5 {[%clk 0:01:48]} 21. Bxc5 {[%clk 0:01:36]}  Qxc5 {[%clk 0:01:49]} 22. Qe3 {[%clk 0:01:36]}  Qd6 {[%clk 0:01:48]} 23. Kh2 {[%clk 0:01:33]}  b4 {[%clk 0:01:42]} 24. Rad1 {[%clk 0:01:17]}  Qe7 {[%clk 0:01:18]} 25. Re2 {[%clk 0:00:37]}  bxc3 {[%clk 0:01:18]} 26. bxc3 {[%clk 0:00:36]}  Qa3 {[%clk 0:01:18]} 27. Rc2 {[%clk 0:00:34]}  Bc6 {[%clk 0:01:18]} 28. Rdd2 {[%clk 0:00:17]}  Ba4 {[%clk 0:01:08]} 29. Nxe4 {[%clk 0:00:17]}  Bxc2 {[%clk 0:01:06]} 30. Rxc2 {[%clk 0:00:18]}  dxe4 {[%clk 0:01:03]} 31. Bxe4 {[%clk 0:00:18]}  Qc5 {[%clk 0:01:01]} 32. Qd3 {[%clk 0:00:13]}  Rf2+ {[%clk 0:00:59]} 33. Rxf2 {[%clk 0:00:14]}  Qxf2+ {[%clk 0:01:00]} 34. Bg2 {[%clk 0:00:14]}  Qxa2 {[%clk 0:00:55]} 35. h4 {[%clk 0:00:14]}  Qc4 {[%clk 0:00:55]} 36. Qd7 {[%clk 0:00:13]}  a5 {[%clk 0:00:47]} 37. Bh3 {[%clk 0:00:11]}  Qe2+ {[%clk 0:00:39]} 38. Kh1 {[%clk 0:00:11]}  Rb8 {[%clk 0:00:33]} 39. Bxe6+ {[%clk 0:00:11]}  Kh8 {[%clk 0:00:33]} 40. Bf5 {[%clk 0:00:07]}  Qf1+ {[%clk 0:00:24]} 41. Kh2 {[%clk 0:00:07]}  Rb2+ {[%clk 0:00:24]} 42. Bc2 {[%clk 0:00:06]}  Rxc2+ {[%clk 0:00:24]} 43. Qd2 {[%clk 0:00:04]}  Rxd2# {[%clk 0:00:25]} 0-1


[Site "https://www.chess.com"]

[Event "Titled Tuesday Blitz August 08 Early 2023"]
[White "Novik, Maxim"]
[Black "Kohler, Aran"]
[WhiteFideId "4102924"]
[BlackFideId "1002856"]
[WhiteElo "2486"]
[BlackElo "2256"]
[Result "1-0"]
[Round "2"]
[TimeControl "180+1"]
[Date "2023.08.08"]
[WhiteClock "0:00:59"]
[BlackClock "0:00:23"]
[Board "225"]

1. d4 {[%clk 0:03:00]}  d5 {[%clk 0:02:59]} 2. c4 {[%clk 0:03:00]}  c6 {[%clk 0:02:59]} 3. Nc3 {[%clk 0:03:01]}  Nf6 {[%clk 0:02:59]} 4. e3 {[%clk 0:03:00]}  e6 {[%clk 0:02:59]} 5. Nf3 {[%clk 0:02:59]}  Nbd7 {[%clk 0:02:59]} 6. Qc2 {[%clk 0:02:59]}  Bd6 {[%clk 0:02:59]} 7. Bd2 {[%clk 0:03:00]}  O-O {[%clk 0:02:58]} 8. O-O-O {[%clk 0:02:59]}  e5 {[%clk 0:02:42]} 9. cxd5 {[%clk 0:02:57]}  cxd5 {[%clk 0:02:32]} 10. Nb5 {[%clk 0:02:56]}  Qe7 {[%clk 0:02:17]} 11. Nxd6 {[%clk 0:02:54]}  Qxd6 {[%clk 0:02:17]} 12. dxe5 {[%clk 0:02:42]}  Nxe5 {[%clk 0:02:17]} 13. Nxe5 {[%clk 0:02:42]}  Qxe5 {[%clk 0:02:17]} 14. Bc3 {[%clk 0:02:42]}  Qe6 {[%clk 0:02:11]} 15. Bd3 {[%clk 0:02:41]}  Ne4 {[%clk 0:02:07]} 16. Bxe4 {[%clk 0:02:41]}  dxe4 {[%clk 0:02:06]} 17. Kb1 {[%clk 0:02:37]}  Bd7 {[%clk 0:02:04]} 18. Rd4 {[%clk 0:02:37]}  Bc6 {[%clk 0:02:04]} 19. Rhd1 {[%clk 0:02:37]}  Qg6 {[%clk 0:02:01]} 20. g3 {[%clk 0:02:16]}  Rfe8 {[%clk 0:02:00]} 21. h4 {[%clk 0:02:16]}  Bb5 {[%clk 0:01:41]} 22. Ka1 {[%clk 0:02:03]}  Bd3 {[%clk 0:01:41]} 23. Qb3 {[%clk 0:02:03]}  b5 {[%clk 0:01:40]} 24. Qd5 {[%clk 0:01:54]}  a5 {[%clk 0:01:22]} 25. h5 {[%clk 0:01:54]}  Qg4 {[%clk 0:01:20]} 26. R1xd3 {[%clk 0:01:54]}  b4 {[%clk 0:01:14]} 27. Be1 {[%clk 0:01:48]}  Rac8 {[%clk 0:01:08]} 28. Rd1 {[%clk 0:01:47]}  Qe2 {[%clk 0:00:48]} 29. Qxa5 {[%clk 0:01:24]}  b3 {[%clk 0:00:41]} 30. Bc3 {[%clk 0:01:16]}  Qc2 {[%clk 0:00:38]} 31. R4d2 {[%clk 0:01:10]}  Ra8 {[%clk 0:00:36]} 32. Qxa8 {[%clk 0:01:01]}  Qxd1+ {[%clk 0:00:32]} 33. Rxd1 {[%clk 0:01:00]}  Rxa8 {[%clk 0:00:33]} 34. a3 {[%clk 0:01:00]}  f6 {[%clk 0:00:23]} 35. Kb1 {[%clk 0:00:59]} 1-0


[Site "https://www.chess.com"]

[Event "Titled Tuesday Blitz August 08 Early 2023"]
[White "Jovic, Stanoje"]
[Black "Player, Edmund C"]
[WhiteFideId "905020"]
[BlackFideId "406520"]
[WhiteElo "2485"]
[BlackElo "2256"]
[Result "1/2-1/2"]
[Round "2"]
[TimeControl "180+1"]
[Date "2023.08.08"]
[WhiteClock "0:00:29"]
[BlackClock "0:00:06"]
[Board "226"]

1. c4 {[%clk 0:03:00]}  c5 {[%clk 0:02:59]} 2. g3 {[%clk 0:03:00]}  Nc6 {[%clk 0:02:58]} 3. Bg2 {[%clk 0:03:01]}  g6 {[%clk 0:02:58]} 4. Nc3 {[%clk 0:03:01]}  Bg7 {[%clk 0:02:59]} 5. Nf3 {[%clk 0:03:01]}  d6 {[%clk 0:02:59]} 6. O-O {[%clk 0:03:01]}  e5 {[%clk 0:02:58]} 7. Ne1 {[%clk 0:03:01]}  Nge7 {[%clk 0:02:57]} 8. Nc2 {[%clk 0:03:01]}  O-O {[%clk 0:02:56]} 9. Ne3 {[%clk 0:03:01]}  Be6 {[%clk 0:02:55]} 10. Ned5 {[%clk 0:03:01]}  Qd7 {[%clk 0:02:55]} 11. Qa4 {[%clk 0:03:01]}  Nc8 {[%clk 0:01:08]} 12. d3 {[%clk 0:02:57]}  h6 {[%clk 0:01:04]} 13. a3 {[%clk 0:02:56]}  Rb8 {[%clk 0:00:45]} 14. Bxh6 {[%clk 0:02:48]}  Nd4 {[%clk 0:00:36]} 15. Qxd7 {[%clk 0:02:39]}  Bxd7 {[%clk 0:00:37]} 16. Bxg7 {[%clk 0:02:35]}  Kxg7 {[%clk 0:00:36]} 17. e3 {[%clk 0:02:35]}  Nb3 {[%clk 0:00:35]} 18. Rad1 {[%clk 0:02:33]}  a6 {[%clk 0:00:35]} 19. a4 {[%clk 0:02:19]}  b5 {[%clk 0:00:34]} 20. axb5 {[%clk 0:02:19]}  axb5 {[%clk 0:00:35]} 21. f4 {[%clk 0:02:15]}  exf4 {[%clk 0:00:27]} 22. gxf4 {[%clk 0:02:15]}  Bg4 {[%clk 0:00:25]} 23. Bf3 {[%clk 0:01:53]}  Bh3 {[%clk 0:00:24]} 24. Rf2 {[%clk 0:01:51]}  b4 {[%clk 0:00:24]} 25. Ne4 {[%clk 0:01:49]}  f6 {[%clk 0:00:18]} 26. Ng3 {[%clk 0:01:40]}  Nb6 {[%clk 0:00:16]} 27. Nxb6 {[%clk 0:01:29]}  Rxb6 {[%clk 0:00:17]} 28. d4 {[%clk 0:01:29]}  Re8 {[%clk 0:00:16]} 29. Rd3 {[%clk 0:01:21]}  Nc1 {[%clk 0:00:13]} 30. Rd1 {[%clk 0:01:16]}  Nb3 {[%clk 0:00:13]} 31. Re2 {[%clk 0:01:10]}  Ra6 {[%clk 0:00:12]} 32. Kf2 {[%clk 0:01:00]}  Ra2 {[%clk 0:00:11]} 33. Ne4 {[%clk 0:00:55]}  cxd4 {[%clk 0:00:08]} 34. exd4 {[%clk 0:00:54]}  f5 {[%clk 0:00:07]} 35. Ng5 {[%clk 0:00:51]}  Rxe2+ {[%clk 0:00:08]} 36. Bxe2 {[%clk 0:00:50]}  Bg4 {[%clk 0:00:07]} 37. Bxg4 {[%clk 0:00:44]}  fxg4 {[%clk 0:00:08]} 38. c5 {[%clk 0:00:42]}  Rxb2+ {[%clk 0:00:08]} 39. Kg3 {[%clk 0:00:42]}  dxc5 {[%clk 0:00:08]} 40. d5 {[%clk 0:00:42]}  Rd2 {[%clk 0:00:08]} 41. Rxd2 {[%clk 0:00:37]}  Nxd2 {[%clk 0:00:09]} 42. Ne6+ {[%clk 0:00:35]}  Kf6 {[%clk 0:00:08]} 43. Nxc5 {[%clk 0:00:35]}  b3 {[%clk 0:00:08]} 44. Nd3 {[%clk 0:00:34]}  Nc4 {[%clk 0:00:07]} 45. Kxg4 {[%clk 0:00:33]}  b2 {[%clk 0:00:08]} 46. Nxb2 {[%clk 0:00:33]}  Nxb2 {[%clk 0:00:09]} 47. d6 {[%clk 0:00:33]}  Nc4 {[%clk 0:00:07]} 48. d7 {[%clk 0:00:33]}  Ke7 {[%clk 0:00:07]} 49. Kg5 {[%clk 0:00:34]}  Kxd7 {[%clk 0:00:07]} 50. Kxg6 {[%clk 0:00:34]}  Ke7 {[%clk 0:00:07]} 51. h4 {[%clk 0:00:33]}  Kf8 {[%clk 0:00:05]} 52. h5 {[%clk 0:00:33]}  Nd6 {[%clk 0:00:05]} 53. h6 {[%clk 0:00:33]}  Kg8 {[%clk 0:00:05]} 54. Kf6 {[%clk 0:00:31]}  Kh7 {[%clk 0:00:05]} 55. Ke6 {[%clk 0:00:30]}  Ne4 {[%clk 0:00:05]} 56. Ke5 {[%clk 0:00:28]}  Ng3 {[%clk 0:00:06]} 57. f5 {[%clk 0:00:28]}  Nxf5 {[%clk 0:00:05]} 58. Kxf5 {[%clk 0:00:29]}  Kxh6 {[%clk 0:00:06]} 1/2-1/2


[Site "https://www.chess.com"]